bitfinex-derivatives/quotes_BTCF0:USTF0_20250901
["timestamp","ask_amount","ask_price","bid_price","bid_amount"]
[1756717584840,1.23164,109710.0,109700.0,0.48108818]
[1756717585135,1.23164,109710.0,109700.0,0.7180758]
[1756717585444,1.23164,109710.0,109700.0,0.7200758]
[1756717585644,1.23164,109710.0,109700.0,0.48308818]
[1756717585846,1.23164,109710.0,109700.0,0.72908615]
[1756717587246,1.2520859,109710.0,109700.0,0.72908615]
[1756717588348,1.48907352,109710.0,109700.0,0.01201035]
[1756717588551,1.73907352,109710.0,109700.0,0.003]
[1756717589248,1.5020859,109710.0,109700.0,0.003]
[1756717589444,1.73907352,109710.0,109700.0,0.003]
[1756717590058,1.73991352,109710.0,109700.0,0.003]
[1756717593557,1.74921743,109710.0,109700.0,0.003]
[1756717593957,1.73991352,109710.0,109700.0,0.003]
[1756717594560,1.73991352,109710.0,109700.0,0.02585]
[1756717594756,0.89347352,109710.0,109700.0,0.02585]
[1756717594963,1.2518859,109710.0,109700.0,0.06181]
[1756717595362,1.2518859,109710.0,109700.0,0.42181]
[1756717596164,0.4064859,109710.0,109700.0,0.65879762]
[1756717596357,1.2517659,109710.0,109700.0,0.65879762]
[1756717596664,1.22161,109710.0,109700.0,0.90879762]
[1756717596856,0.38604,109710.0,109700.0,0.90879762]
[1756717597057,1.22173,109710.0,109700.0,0.90879762]
[1756717597454,1.23144,109710.0,109700.0,0.90879762]
[1756717598461,1.23144,109710.0,109700.0,0.67181]
[1756717598666,1.23144,109710.0,109700.0,0.90879762]
[1756717599364,1.22173,109710.0,109700.0,0.90879762]
[1756717599956,1.23144,109710.0,109700.0,0.90879762]
[1756717602262,0.38604,109710.0,109700.0,0.90879762]
[1756717602464,1.2308,109710.0,109700.0,0.90879762]
[1756717602659,0.38604,109710.0,109700.0,0.90879762]
[1756717602863,1.22113,109710.0,109700.0,0.90879762]
[1756717603065,1.23084,109710.0,109700.0,0.90879762]
[1756717605560,1.23084,109710.0,109700.0,0.27585]
[1756717605761,1.23084,109710.0,109700.0,0.85283762]
[1756717605967,1.23084,109710.0,109700.0,0.88879762]
[1756717611970,1.25126706,109710.0,109700.0,0.02585]
[1756717612163,1.50126706,109710.0,109700.0,0.383]
[1756717612674,1.50126706,109710.0,109700.0,0.40604]
[1756717612874,1.24998706,109710.0,109700.0,0.67805762]
[1756717614770,1.24998706,109710.0,109700.0,0.02604]
[1756717614971,1.24998706,109710.0,109700.0,0.36604]
[1756717615877,0.40646706,109710.0,109700.0,0.40107]
[1756717616172,1.24970706,109710.0,109700.0,0.63805762]
[1756717616379,0.39675706,109710.0,109700.0,0.63805762]
[1756717616576,1.21969,109710.0,109700.0,0.63805762]
[1756717617173,1.2294,109710.0,109700.0,0.63805762]
[1756717617370,1.24982487,109710.0,109700.0,0.63805762]
[1756717617980,1.24982487,109710.0,109700.0,0.40107]
[1756717618176,1.24982487,109710.0,109700.0,0.63805762]
[1756717618780,1.2294,109710.0,109700.0,0.63805762]
[1756717619181,1.24982622,109710.0,109700.0,0.63805762]
[1756717619378,1.2294,109710.0,109700.0,0.63805762]
[1756717619776,1.24982627,109710.0,109700.0,0.63805762]
[1756717620480,1.24982627,109710.0,109700.0,0.06107]
[1756717620776,1.73681389,109710.0,109700.0,0.003]
[1756717621176,0.89345389,109710.0,109700.0,0.02604]
[1756717621384,1.24990627,109710.0,109700.0,0.39107]
[1756717622084,1.24990627,109710.0,109700.0,0.62805762]
[1756717622378,0.40646627,109710.0,109700.0,0.62805762]
[1756717622778,1.25006627,109710.0,109700.0,0.62805762]
[1756717622979,0.37633,109710.0,109700.0,0.62805762]
[1756717623177,1.22025,109710.0,109700.0,0.62805762]
[1756717623376,0.37633,109710.0,109700.0,0.71920742]
[1756717623577,0.37633,109710.0,109700.0,0.96920742]
[1756717623783,0.37633,109720.0,109710.0,0.05807]
[1756717623977,1.24068141,109720.0,109710.0,0.85204524]
[1756717624173,1.20472,109720.0,109710.0,1.20768664]
[1756717624378,1.20472,109720.0,109710.0,1.11654524]
[1756717624682,1.20472,109720.0,109710.0,1.36654524]
[1756717624983,1.20472,109720.0,109710.0,1.45868664]
[1756717625179,0.40433628,109730.0,109720.0,0.03503]
[1756717625385,1.2686979,109730.0,109720.0,0.60505762]
[1756717627376,1.2696979,109730.0,109720.0,0.60505762]
[1756717627784,1.2706979,109730.0,109720.0,0.60505762]
[1756717629690,0.4267779,109730.0,109720.0,0.60505762]
[1756717629892,1.25200162,109730.0,109720.0,0.60505762]
[1756717630288,1.25200162,109730.0,109720.0,0.62560056]
[1756717631689,0.38324162,109730.0,109720.0,0.62560056]
[1756717631889,0.86552162,109730.0,109720.0,0.62560056]
[1756717632484,0.88105162,109730.0,109720.0,0.62560056]
[1756717632785,0.86552162,109730.0,109720.0,0.96673386]
[1756717633178,0.84508,109730.0,109720.0,0.96673386]
[1756717633983,0.87032,109730.0,109720.0,0.87560056]
[1756717638892,1.23112,109730.0,109720.0,0.62560056]
[1756717639092,1.23112,109730.0,109720.0,0.63560056]
[1756717640692,0.02524,109720.0,109710.0,0.02427]
[1756717640894,0.02524,109720.0,109700.0,0.29142933]
[1756717640895,0.62302762,109720.0,109700.0,0.29142933]
[1756717641092,1.46546762,109710.0,109700.0,0.42457171]
[1756717641297,1.22848,109710.0,109700.0,0.42457171]
[1756717641497,1.22848,109710.0,109700.0,0.45871171]
[1756717643398,1.22848,109710.0,109700.0,0.46071171]
[1756717643900,1.22848,109710.0,109700.0,0.46171171]
[1756717644297,1.22844,109710.0,109700.0,0.46171171]
[1756717644499,1.22844,109710.0,109700.0,0.69869933]
[1756717647602,1.22844,109710.0,109700.0,0.46171171]
[1756717649100,1.22844,109710.0,109700.0,0.04757171]
[1756717649299,1.48412788,109710.0,109700.0,0.003]
[1756717649503,1.5044761,109710.0,109700.0,0.003]
[1756717650803,1.7544761,109710.0,109700.0,0.003]
[1756717652704,1.76378348,109710.0,109700.0,0.003]
[1756717656312,0.01744,109680.0,109670.0,0.02427]
[1756717656513,1.83649705,109680.0,109670.0,0.04363981]
[1756717656911,1.83649705,109680.0,109670.0,0.07777981]
[1756717657619,0.01744,109670.0,109660.0,0.02427]
[1756717657817,0.01744,109670.0,109660.0,0.32742513]
[1756717657818,0.37824,109670.0,109660.0,0.32742513]
[1756717658117,0.37824,109670.0,109660.0,0.6390212]
[1756717658316,1.22016,109670.0,109660.0,0.6390212]
[1756717658617,0.37824,109670.0,109660.0,0.6390212]
[1756717658912,1.22016,109670.0,109660.0,0.6390212]
[1756717659302,0.37824,109670.0,109660.0,0.6390212]
[1756717659615,1.2202,109670.0,109660.0,0.6390212]
[1756717662721,1.2202,109670.0,109660.0,0.44789358]
[1756717663014,1.2202,109670.0,109660.0,0.7190212]
[1756717666420,1.2202,109670.0,109660.0,0.7590212]
[1756717666618,0.37824,109670.0,109660.0,0.7590212]
[1756717666822,1.22028,109670.0,109660.0,0.7590212]
[1756717670218,0.37824,109670.0,109660.0,0.7590212]
[1756717670418,1.22028,109670.0,109660.0,0.7590212]
[1756717671322,1.22028,109670.0,109660.0,0.52203358]
[1756717671522,1.22028,109670.0,109660.0,0.14203358]
[1756717671820,1.22028,109670.0,109660.0,0.3790212]
[1756717672121,1.22028,109670.0,109660.0,0.7590212]
[1756717673322,1.22028,109670.0,109660.0,0.52203358]
[1756717673521,1.22028,109670.0,109660.0,0.7590212]
[1756717677015,0.85948,109670.0,109660.0,0.7590212]
[1756717677211,1.24063314,109670.0,109660.0,0.7590212]
[1756717680418,0.87308314,109670.0,109660.0,0.7590212]
[1756717680623,0.02035314,109670.0,109660.0,1.0090212]
[1756717680817,0.02035314,109670.0,109660.0,1.4610043]
[1756717681025,1.23882943,109680.0,109670.0,0.0597]
[1756717681224,1.25920928,109680.0,109670.0,0.65668762]
[1756717681924,0.89840928,109680.0,109670.0,0.65668762]
[1756717682426,0.89940928,109680.0,109670.0,0.65668762]
[1756717684224,0.90140928,109680.0,109670.0,0.65668762]
[1756717688023,0.90140928,109680.0,109670.0,0.0597]
[1756717688325,0.90140928,109680.0,109670.0,0.60668762]
[1756717689124,0.90140928,109680.0,109670.0,0.65668762]
[1756717690423,0.05940928,109680.0,109670.0,0.65668762]
[1756717690721,0.003,109680.0,109670.0,1.10866252]
[1756717691121,0.003,109680.0,109670.0,1.59565014]
[1756717691321,0.003,109680.0,109670.0,1.35866252]
[1756717692224,0.003,109680.0,109670.0,1.62316252]
[1756717695730,0.00971,109680.0,109670.0,1.62316252]
[1756717695930,0.00971,109680.0,109670.0,1.53198762]
[1756717696431,0.003,109680.0,109670.0,1.62316242]
[1756717698533,0.003,109680.0,109670.0,1.26236242]
[1756717699432,0.00971,109680.0,109670.0,1.17118762]
[1756717700335,0.003,109680.0,109670.0,1.32786505]
[1756717700535,0.003,109680.0,109670.0,1.68866505]
[1756717703632,0.003,109680.0,109670.0,1.26236242]
[1756717703936,0.003,109680.0,109670.0,1.62316242]
[1756717704332,0.003,109680.0,109670.0,1.68866505]
[1756717704836,0.003,109680.0,109670.0,1.62316242]
[1756717705939,0.003,109680.0,109670.0,1.26236242]
[1756717706339,0.003,109680.0,109670.0,1.17118762]
[1756717707534,0.003,109680.0,109670.0,1.62316242]
[1756717707835,1.24300049,109700.0,109690.0,0.02403]
[1756717708043,1.256543,109700.0,109690.0,0.02403]
[1756717708340,1.256543,109700.0,109690.0,0.05884]
[1756717708743,1.266253,109700.0,109690.0,0.05884]
[1756717708940,1.269253,109700.0,109690.0,0.05884]
[1756717709242,1.272253,109700.0,109690.0,0.29582762]
[1756717710340,1.272253,109700.0,109690.0,0.62582762]
[1756717712444,0.060143,109700.0,109690.0,0.71698582]
[1756717712639,0.86588049,109700.0,109690.0,0.71698582]
[1756717713140,0.88141049,109700.0,109690.0,0.62582762]
[1756717713348,0.89112049,109700.0,109690.0,0.62582762]
[1756717713540,0.88141049,109700.0,109690.0,0.62582762]
[1756717713940,0.88141049,109700.0,109690.0,0.71698572]
[1756717714243,0.02136049,109700.0,109690.0,0.71698572]
[1756717714444,0.04660049,109700.0,109690.0,0.71698572]
[1756717715147,0.04360049,109700.0,109690.0,0.71798572]
[1756717715345,0.04360049,109700.0,109690.0,0.62682762]
[1756717715747,0.01836049,109700.0,109690.0,0.71798572]
[1756717718557,0.01836049,109700.0,109690.0,0.62682762]
[1756717720344,0.03389049,109700.0,109690.0,0.62682762]
[1756717720544,0.04360049,109700.0,109690.0,0.62682762]
[1756717720752,0.03389049,109700.0,109690.0,0.62682762]
[1756717724057,0.40440049,109700.0,109690.0,0.62682762]
[1756717724951,0.89138811,109700.0,109690.0,0.07984]
[1756717725157,0.67458139,109700.0,109690.0,0.29682762]
[1756717725356,0.65440049,109700.0,109690.0,0.62682762]
[1756717725556,0.39469049,109700.0,109690.0,0.62682762]
[1756717725758,1.22044049,109700.0,109690.0,0.62682762]
[1756717726264,0.88488049,109700.0,109690.0,0.62682762]
[1756717726450,0.88488049,109700.0,109690.0,0.62582762]
[1756717726762,0.88588049,109700.0,109690.0,0.62582762]
[1756717727360,0.90606698,109700.0,109690.0,0.62582762]
[1756717727957,0.90506698,109700.0,109690.0,0.62582762]
[1756717728159,0.90506698,109700.0,109690.0,0.62682762]
[1756717728764,1.7528546,109700.0,109690.0,0.39177]
[1756717729060,1.7528546,109700.0,109690.0,0.02503]
[1756717729252,1.51586698,109700.0,109690.0,0.02503]
[1756717729457,1.49568049,109700.0,109690.0,0.06177]
[1756717729758,1.51586786,109700.0,109690.0,0.06177]
[1756717731162,1.75285548,109700.0,109690.0,0.001]
[1756717731662,1.75285548,109700.0,109690.0,0.06165]
[1756717731862,1.75285548,109700.0,109690.0,0.02491]
[1756717733260,1.75385548,109700.0,109690.0,0.02391]
[1756717733465,1.75485548,109700.0,109690.0,0.02391]
[1756717737468,0.02524,109690.0,109680.0,0.02404662]
[1756717737665,0.62302762,109690.0,109680.0,0.10404662]
[1756717737865,0.40622746,109690.0,109680.0,0.10404662]
[1756717738068,0.40622746,109690.0,109680.0,0.14078662]
[1756717738264,0.38604,109690.0,109680.0,0.14078662]
[1756717738666,0.40622516,109690.0,109680.0,0.14078662]
[1756717738965,0.40622516,109690.0,109680.0,0.14178662]
[1756717739272,0.38604,109690.0,109680.0,0.14178662]
[1756717739470,0.38604,109690.0,109680.0,0.14078662]
[1756717739771,0.38704,109690.0,109680.0,0.14078662]
[1756717739973,0.40722602,109690.0,109680.0,0.14078662]
[1756717740672,0.40822602,109690.0,109680.0,0.14078662]
[1756717741274,1.24934602,109690.0,109680.0,0.61777424]
[1756717742571,1.24934602,109690.0,109680.0,0.15078662]
[1756717742776,1.24934602,109690.0,109680.0,0.14078662]
[1756717743576,1.24934602,109690.0,109680.0,0.37777424]
[1756717743766,1.24934602,109690.0,109680.0,0.14078662]
[1756717743963,1.24934602,109690.0,109680.0,0.10404662]
[1756717744370,1.24934602,109690.0,109680.0,0.08013662]
[1756717744672,1.48633364,109690.0,109680.0,0.10404662]
[1756717745176,1.48633364,109690.0,109680.0,0.00013662]
[1756717745373,1.73633364,109690.0,109680.0,0.00013662]
[1756717745574,0.01532,109670.0,109660.0,0.40175818]
[1756717745878,1.22673,109670.0,109660.0,0.74175818]
[1756717746874,1.22673,109670.0,109660.0,0.74275818]
[1756717747775,1.22673,109670.0,109660.0,0.74475818]
[1756717748570,1.22673,109670.0,109660.0,0.74275818]
[1756717748770,1.22673,109670.0,109660.0,0.50677056]
[1756717748973,1.22673,109670.0,109660.0,0.74375818]
[1756717749181,1.22673,109670.0,109660.0,0.74275818]
[1756717751280,0.3608,109670.0,109660.0,0.99275818]
[1756717751481,0.63964,109670.0,109660.0,1.35355818]
[1756717751680,0.38916993,109680.0,109660.0,1.35355818]
[1756717751886,0.40448993,109680.0,109670.0,0.29763762]
[1756717752084,1.24548993,109680.0,109670.0,0.62763762]
[1756717753085,1.24648993,109680.0,109670.0,0.62763762]
[1756717754587,1.24548993,109680.0,109670.0,0.39065]
[1756717754787,1.24548993,109680.0,109670.0,0.62863762]
[1756717755584,1.24648993,109680.0,109670.0,0.62863762]
[1756717756085,0.40548993,109680.0,109670.0,0.62863762]
[1756717756287,1.24644993,109680.0,109670.0,0.62863762]
[1756717756490,1.24544993,109680.0,109670.0,0.62863762]
[1756717756984,1.24544993,109680.0,109670.0,0.39165]
[1756717757191,1.24544993,109680.0,109670.0,0.62863762]
[1756717760094,1.24544993,109680.0,109670.0,0.39165]
[1756717760293,1.24544993,109680.0,109670.0,0.62863762]
[1756717764398,1.24544993,109680.0,109670.0,0.39165]
[1756717764595,1.24544993,109680.0,109670.0,0.62863762]
[1756717767404,0.42468125,109680.0,109670.0,0.62863762]
[1756717767700,1.26548125,109680.0,109670.0,0.62863762]
[1756717768000,1.26548125,109680.0,109670.0,0.62829762]
[1756717768191,1.26548125,109680.0,109670.0,0.59189762]
[1756717768398,1.26548125,109680.0,109670.0,0.62829762]
[1756717768899,1.26544125,109680.0,109670.0,0.62829762]
[1756717769301,1.26644125,109680.0,109670.0,0.62729762]
[1756717769598,1.26744125,109680.0,109670.0,0.62729762]
[1756717770702,0.42668125,109680.0,109670.0,0.62729762]
[1756717770901,1.24724993,109680.0,109670.0,0.62729762]
[1756717773802,1.24724993,109680.0,109670.0,0.35391]
[1756717774002,1.24724993,109680.0,109670.0,0.62747955]
[1756717774900,1.26744423,109680.0,109670.0,0.62747955]
[1756717776004,1.26744423,109680.0,109670.0,0.63747729]
[1756717777302,1.24724993,109680.0,109670.0,0.63747729]
[1756717777702,1.24724993,109680.0,109670.0,0.29747729]
[1756717777909,1.24724993,109680.0,109670.0,0.62747729]
[1756717780404,1.26746016,109680.0,109670.0,0.62747729]
[1756717780898,1.24724993,109680.0,109670.0,0.62747729]
[1756717781310,1.26746512,109680.0,109670.0,0.62747729]
[1756717781604,1.26746512,109680.0,109670.0,0.23716729]
[1756717782004,1.26746512,109680.0,109670.0,0.57078729]
[1756717782411,1.26746512,109680.0,109670.0,0.26078729]
[1756717782612,1.26746512,109680.0,109670.0,0.23716729]
[1756717783111,1.26746512,109680.0,109670.0,0.26078729]
[1756717783411,1.26726512,109680.0,109670.0,0.67718729]
[1756717783610,0.42670512,109680.0,109670.0,0.67718729]
[1756717783806,1.26726512,109680.0,109670.0,0.67718729]
[1756717786408,1.26726512,109680.0,109670.0,0.44002]
[1756717786611,1.26726512,109680.0,109670.0,0.67718729]
[1756717789713,1.26718512,109680.0,109670.0,0.67718729]
[1756717790612,1.26718512,109680.0,109670.0,0.44002]
[1756717790814,1.26718512,109680.0,109670.0,0.67718729]
[1756717793116,1.24696993,109680.0,109670.0,0.67718729]
[1756717796119,1.24696993,109680.0,109670.0,0.91428488]
[1756717796616,1.24684993,109680.0,109670.0,0.91428488]
[1756717796918,1.24584993,109680.0,109670.0,0.91428488]
[1756717797218,1.24484993,109680.0,109670.0,0.91528488]
[1756717797520,1.24484993,109680.0,109670.0,0.91428488]
[1756717797720,1.24584993,109680.0,109670.0,0.91428488]
[1756717797920,1.24684993,109680.0,109670.0,0.91428488]
[1756717798116,1.24684993,109680.0,109670.0,1.07096421]
[1756717800020,1.24684993,109680.0,109670.0,1.00546158]
[1756717800220,1.24684993,109680.0,109670.0,0.91428488]
[1756717800628,1.24684993,109680.0,109670.0,1.00546128]
[1756717800828,1.24684993,109680.0,109670.0,0.76832884]
[1756717801326,1.24684993,109680.0,109670.0,0.67715244]
[1756717802922,0.40648993,109680.0,109670.0,0.67715244]
[1756717803124,2.22919151,109720.0,109670.0,0.67715244]
[1756717803125,0.08178521,109740.0,109730.0,0.150757]
[1756717803328,0.02439,109760.0,109750.0,0.1262173]
[1756717803623,0.02439,109770.0,109760.0,0.05963]
[1756717803827,0.02439,109770.0,109760.0,1.60292942]
[1756717804028,0.02439,109770.0,109760.0,1.22292942]
[1756717804225,0.01798106,109770.0,109760.0,1.50141076]
[1756717804424,0.01798106,109770.0,109760.0,1.55890064]
[1756717804729,0.01798106,109770.0,109760.0,1.68511274]
[1756717805130,0.02816106,109770.0,109760.0,1.63621088]
[1756717805327,0.02816106,109770.0,109760.0,1.6355293]
[1756717806032,0.02816106,109770.0,109760.0,1.39756764]
[1756717806230,0.02816106,109770.0,109760.0,1.36596776]
[1756717806730,0.02816106,109770.0,109760.0,1.36696776]
[1756717807727,0.01798106,109770.0,109760.0,1.4395188]
[1756717807926,0.34411,109780.0,109770.0,0.0910937]
[1756717808125,0.02647,109780.0,109770.0,1.32495936]
[1756717808322,0.54499,109780.0,109770.0,1.32495936]
[1756717809926,0.54499,109780.0,109770.0,0.65714783]
[1756717810126,0.54499,109780.0,109770.0,0.89386566]
[1756717810330,0.54499,109780.0,109770.0,1.31495936]
[1756717810726,0.54499,109780.0,109770.0,0.98495936]
[1756717810928,0.54499,109780.0,109770.0,1.33495936]
[1756717812233,0.53481,109780.0,109770.0,1.33495936]
[1756717812631,0.54499,109780.0,109770.0,1.33495936]
[1756717813831,0.02647,109800.0,109780.0,0.03511]
[1756717814035,0.02647,109800.0,109790.0,1.34574626]
[1756717814235,0.02647,109800.0,109790.0,1.69574626]
[1756717814435,0.02647,109800.0,109790.0,0.8723106]
[1756717814629,0.02647,109800.0,109790.0,1.7350688]
[1756717814834,0.02647,109800.0,109790.0,1.3550688]
[1756717815031,0.02747,109800.0,109790.0,1.7250688]
[1756717815640,0.01729,109800.0,109790.0,1.7250688]
[1756717815837,0.01729,109800.0,109790.0,1.3550688]
[1756717816141,0.01729,109800.0,109790.0,1.6650688]
[1756717816142,0.02747,109800.0,109790.0,1.6650688]
[1756717816542,0.02747,109800.0,109790.0,0.88163314]
[1756717816743,0.02747,109800.0,109790.0,1.6650688]
[1756717817043,0.02847,109800.0,109790.0,1.6650688]
[1756717817439,0.02847,109800.0,109790.0,1.3550688]
[1756717817842,0.02847,109800.0,109790.0,1.02727037]
[1756717818145,0.27847,109800.0,109790.0,1.11834927]
[1756717818345,0.27847,109800.0,109790.0,1.02727037]
[1756717818839,0.27847,109800.0,109790.0,1.01794783]
[1756717819044,0.27847,109800.0,109790.0,0.98283783]
[1756717819045,1.12195,109800.0,109790.0,0.98283783]
[1756717819742,1.12195,109800.0,109790.0,1.01962783]
[1756717819941,1.12195,109800.0,109790.0,0.98283783]
[1756717820340,1.12195,109800.0,109790.0,1.01962783]
[1756717820538,1.12195,109800.0,109790.0,0.3608]
[1756717820736,0.01018,109780.0,109770.0,0.3608]
[1756717820937,0.02647,109770.0,109760.0,0.79291887]
[1756717821140,0.02647,109770.0,109760.0,0.69291887]
[1756717821740,0.02647,109770.0,109760.0,0.72970887]
[1756717823450,0.02647,109770.0,109760.0,0.73070887]
[1756717823948,0.86923,109770.0,109760.0,0.73425887]
[1756717824243,0.04524608,109780.0,109770.0,0.05964]
[1756717824444,0.88180608,109780.0,109770.0,0.29635783]
[1756717824647,0.88180608,109780.0,109770.0,0.25956783]
[1756717824846,0.01877608,109780.0,109770.0,0.29635783]
[1756717825046,0.04509178,109810.0,109800.0,0.05964]
[1756717825349,0.93289178,109810.0,109800.0,1.25467566]
[1756717825848,0.93425178,109810.0,109800.0,1.25467566]
[1756717826552,0.93425178,109810.0,109800.0,1.01795783]
[1756717826753,0.92407178,109810.0,109800.0,1.01795783]
[1756717827148,0.92707178,109810.0,109800.0,1.01795783]
[1756717827752,0.93725178,109810.0,109800.0,1.01795783]
[1756717827948,0.93725178,109810.0,109800.0,1.07700841]
[1756717833162,0.04809178,109810.0,109800.0,1.07700841]
[1756717833364,0.93365178,109810.0,109800.0,1.07700841]
[1756717833559,0.04709178,109810.0,109800.0,1.07700841]
[1756717833766,0.92271178,109810.0,109800.0,1.07700841]
[1756717833966,0.03691178,109810.0,109800.0,1.07700841]
[1756717834164,0.92271178,109810.0,109800.0,1.07700841]
[1756717834367,0.92271178,109810.0,109800.0,1.08633982]
[1756717834559,0.02062178,109810.0,109800.0,1.08633982]
[1756717834864,0.90630178,109810.0,109800.0,1.08633982]
[1756717835262,0.93277178,109810.0,109800.0,0.78124]
[1756717835456,0.93277178,109810.0,109800.0,1.07700841]
[1756717836465,0.92259178,109810.0,109800.0,1.07700841]
[1756717836667,0.90630178,109810.0,109800.0,1.07700841]
[1756717837068,0.91648178,109810.0,109800.0,1.07700841]
[1756717837566,0.93277178,109810.0,109800.0,0.78124]
[1756717837869,0.93157178,109810.0,109800.0,1.07700841]
[1756717841667,1.18157178,109810.0,109800.0,0.38365]
[1756717841873,1.18157178,109810.0,109800.0,0.02285]
[1756717842069,1.18157178,109810.0,109790.0,0.42044]
[1756717842070,0.02647,109800.0,109790.0,0.42044]
[1756717842372,0.02647,109800.0,109790.0,0.71620841]
[1756717842772,0.02647,109800.0,109790.0,0.78620841]
[1756717843274,0.02647,109800.0,109790.0,0.71620841]
[1756717843572,0.02747,109800.0,109790.0,0.05964]
[1756717843763,0.01018,109790.0,109780.0,0.40425588]
[1756717843966,0.90859,109790.0,109780.0,0.40425588]
[1756717844166,0.90859,109790.0,109780.0,0.44104588]
[1756717844367,0.90859,109790.0,109780.0,0.42044]
[1756717844768,0.90859,109790.0,109780.0,0.38365]
[1756717845469,0.90859,109790.0,109780.0,0.3882]
[1756717845773,0.90859,109790.0,109780.0,0.42499]
[1756717846675,0.91059,109790.0,109780.0,0.42499]
[1756717851474,0.02847,109790.0,109780.0,0.42499]
[1756717851679,0.90867,109790.0,109780.0,0.42499]
[1756717853178,0.02847,109790.0,109780.0,0.42499]
[1756717853681,0.90727,109790.0,109780.0,0.42499]
[1756717854980,0.02847,109790.0,109780.0,0.42499]
[1756717855180,0.90651,109790.0,109780.0,0.42499]
[1756717855381,0.02847,109790.0,109780.0,0.66173432]
[1756717855684,0.90639,109790.0,109780.0,0.66173432]
[1756717855879,0.89609,109790.0,109780.0,0.42499]
[1756717856084,0.90627,109790.0,109780.0,0.66173432]
[1756717857486,0.90615,109790.0,109780.0,0.66173432]
[1756717857984,0.90567,109790.0,109780.0,0.66173432]
[1756717858174,0.90467,109790.0,109780.0,0.66173432]
[1756717860588,0.90467,109790.0,109780.0,0.42499]
[1756717861088,0.02747,109790.0,109780.0,0.42499]
[1756717861388,0.90303,109790.0,109780.0,0.42499]
[1756717863188,0.90303,109790.0,109780.0,0.66173432]
[1756717863584,0.02747,109790.0,109780.0,0.66173432]
[1756717863783,0.90291,109790.0,109780.0,0.66173432]
[1756717865693,0.90291,109790.0,109780.0,0.42499]
[1756717865893,0.90291,109790.0,109780.0,0.66173432]
[1756717866390,0.01729,109790.0,109780.0,0.66173432]
[1756717866594,0.87448,109790.0,109780.0,0.66173432]
[1756717867595,0.87448,109790.0,109780.0,0.68595396]
[1756717868394,0.89077,109790.0,109780.0,0.68595396]
[1756717868895,0.87448,109790.0,109780.0,0.68595396]
[1756717869392,0.87376,109790.0,109780.0,1.64935384]
[1756717869986,0.87376,109790.0,109780.0,1.70935384]
[1756717870193,0.87376,109790.0,109780.0,1.6851342]
[1756717871297,0.87276,109790.0,109780.0,1.6851342]
[1756717872202,0.87276,109790.0,109780.0,1.3251342]
[1756717872402,0.87276,109790.0,109780.0,1.6351342]
[1756717873197,0.88294,109790.0,109780.0,1.35403606]
[1756717873603,0.87276,109790.0,109780.0,1.35403606]
[1756717874597,0.87276,109790.0,109780.0,1.3051342]
[1756717875402,0.88294,109790.0,109780.0,1.3051342]
[1756717875902,1.95356847,109800.0,109780.0,1.5983442]
[1756717876204,0.87032,109790.0,109780.0,0.78726988]
[1756717876501,0.87032,109790.0,109780.0,1.14806988]
[1756717876704,0.87032,109790.0,109780.0,1.15806988]
[1756717877402,1.96985847,109800.0,109790.0,0.03647]
[1756717877601,2.83909847,109800.0,109790.0,0.68281832]
[1756717878291,2.83897847,109800.0,109790.0,0.68281832]
[1756717878698,2.83897847,109800.0,109790.0,0.68736832]
[1756717879098,1.96985847,109800.0,109790.0,0.450624]
[1756717879309,1.96985847,109800.0,109790.0,0.68736832]
[1756717879310,2.83853847,109800.0,109790.0,0.68736832]
[1756717880999,1.96985847,109800.0,109790.0,0.68736832]
[1756717881400,2.83785847,109800.0,109790.0,0.68736832]
[1756717881709,2.83785847,109800.0,109790.0,0.450624]
[1756717881909,2.83785847,109800.0,109790.0,0.68736832]
[1756717884807,2.83785847,109800.0,109790.0,0.65089832]
[1756717885310,2.83785847,109800.0,109790.0,0.029044]
[1756717885311,3.32460279,109800.0,109790.0,0.029044]
[1756717885513,3.32460279,109800.0,109790.0,0.00455]
[1756717885904,3.68540279,109800.0,109790.0,0.00455]
[1756717886105,3.68640279,109800.0,109790.0,0.00455]
[1756717886310,0.01464,109790.0,109780.0,0.36093662]
[1756717886507,0.25138432,109790.0,109780.0,0.36093662]
[1756717886706,0.25138432,109790.0,109780.0,0.02406662]
[1756717886918,0.01464,109790.0,109780.0,0.02406662]
[1756717889309,0.01664,109790.0,109780.0,0.02406662]
[1756717890324,0.01664,109790.0,109780.0,0.06115662]
[1756717893514,0.01664,109790.0,109780.0,0.29790094]
[1756717893715,0.01664,109790.0,109780.0,0.63790094]
[1756717894024,0.87485,109790.0,109780.0,1.02319494]
[1756717894526,0.01101,109790.0,109780.0,1.02319494]
[1756717894725,0.86568,109790.0,109780.0,1.27319494]
[1756717894926,0.86468,109790.0,109780.0,1.27319494]
[1756717895525,0.86468,109790.0,109780.0,1.24870094]
[1756717896924,0.87932,109790.0,109780.0,0.90870094]
[1756717897128,0.87932,109790.0,109780.0,1.25870094]
[1756717898133,0.87932,109790.0,109780.0,1.23870094]
[1756717898929,0.87932,109790.0,109780.0,0.90870094]
[1756717900232,0.87932,109790.0,109780.0,0.42195662]
[1756717900638,0.87932,109790.0,109780.0,0.65870094]
[1756717903442,1.11606432,109790.0,109780.0,0.42195662]
[1756717904337,0.87932,109790.0,109780.0,0.42195662]
[1756717909638,1.11606432,109790.0,109780.0,0.38486662]
[1756717909837,1.16462498,109790.0,109780.0,0.38486662]
[1756717910033,1.16462498,109790.0,109780.0,0.41882662]
[1756717910240,0.92788066,109790.0,109780.0,0.41882662]
[1756717910943,0.92788066,109790.0,109780.0,0.05802662]
[1756717911143,0.93713321,109790.0,109780.0,0.05802662]
[1756717911343,0.06420066,109790.0,109780.0,0.05802662]
[1756717911547,0.92732066,109790.0,109780.0,0.05802662]
[1756717911842,0.92732066,109790.0,109780.0,0.41882662]
[1756717917351,0.87876,109790.0,109780.0,0.41882662]
[1756717924651,0.87544,109790.0,109780.0,0.65557094]
[1756717925958,0.87524,109790.0,109780.0,0.65557094]
[1756717926150,0.001,109790.0,109780.0,0.65557094]
[1756717926455,0.001,109790.0,109780.0,0.97557094]
[1756717926655,0.86008,109790.0,109780.0,1.22557094]
[1756717926858,0.86008,109790.0,109780.0,1.25817082]
[1756717927449,0.86008,109790.0,109780.0,1.22557094]
[1756717928457,0.86008,109790.0,109780.0,1.25817082]
[1756717928758,0.85908,109790.0,109780.0,1.25817082]
[1756717928959,0.85908,109790.0,109780.0,0.93817082]
[1756717929257,0.85908,109790.0,109780.0,1.31817082]
[1756717929457,0.86471,109790.0,109780.0,1.31817082]
[1756717929656,0.87372,109790.0,109780.0,0.7014265]
[1756717929854,0.87372,109790.0,109780.0,0.90557094]